bitfinex/quotes_BTCUSD_20241226
["timestamp","ask_amount","ask_price","bid_price","bid_amount"]
[1735220876548,0.01766073,95575.0,95574.0,0.02425147]
[1735220877317,0.12164705,95575.0,95574.0,0.003]
[1735220878387,0.12164705,95575.0,95555.0,0.3032218]
[1735220878388,0.10398632,95575.0,95560.0,0.209291]
[1735220878552,0.10398632,95574.0,95560.0,0.209291]
[1735220878885,0.209264,95573.0,95560.0,0.209291]
[1735220879251,0.10398632,95572.0,95560.0,0.209291]
[1735220879685,0.10398632,95572.0,95558.0,0.02120453]
[1735220879888,0.10398632,95572.0,95559.0,0.209294]
[1735220880126,0.209268,95571.0,95560.0,0.001]
[1735220880323,0.10398632,95570.0,95560.0,0.001]
[1735220881208,0.10398632,95570.0,95563.0,8.56e-05]
[1735220881615,0.209272,95569.0,95563.0,8.56e-05]
[1735220882889,0.209283,95564.0,95563.0,8.56e-05]
[1735220883087,0.46326932,95564.0,95563.0,8.56e-05]
[1735220883279,0.209307,95554.0,95545.0,0.0939198]
[1735220883688,0.209299,95557.0,95542.0,0.0939198]
[1735220883944,0.10398632,95556.0,95542.0,0.0939198]
[1735220884149,0.209303,95555.0,95542.0,0.0939198]
[1735220884460,0.31328932,95555.0,95542.0,0.0939198]
[1735220884658,0.31328932,95555.0,95553.0,0.02055008]
[1735220884659,0.52259332,95555.0,95553.0,0.02055008]
[1735220885470,0.31328932,95555.0,95553.0,0.02055008]
[1735220885996,0.31328932,95555.0,95553.0,0.02555008]
[1735220886202,0.31328932,95555.0,95553.0,0.005]
[1735220886203,0.10398632,95554.0,95553.0,0.005]
[1735220886445,0.15624485,95554.0,95553.0,0.005]
[1735220887713,0.15624485,95554.0,95553.0,0.001]
[1735220887926,0.209307,95553.0,95551.0,0.00044146]
[1735220888107,0.10398632,95552.0,95551.0,0.00044146]
[1735220888295,0.18240141,95552.0,95551.0,0.00044146]
[1735220889097,0.18240141,95552.0,95551.0,0.00744146]
[1735220889317,0.18240141,95552.0,95551.0,0.00244146]
[1735220889694,0.18340141,95552.0,95551.0,0.00744146]
[1735220890103,0.001,95552.0,95551.0,0.00744146]
[1735220890316,0.001,95552.0,95551.0,0.08894146]
[1735220890509,0.001,95552.0,95551.0,0.00744146]
[1735220890959,0.209298,95558.0,95551.0,0.00044146]
[1735220891123,0.209301,95556.0,95551.0,0.00244146]
[1735220891400,0.001,95552.0,95551.0,0.00744146]
[1735220891599,0.10498632,95552.0,95551.0,0.00744146]
[1735220891819,0.10498632,95552.0,95551.0,0.00544146]
[1735220891948,0.10398632,95552.0,95551.0,0.00244146]
[1735220892409,0.10398632,95552.0,95551.0,0.00544146]
[1735220892608,0.17409071,95552.0,95551.0,0.00044146]
[1735220892839,0.17409071,95552.0,95551.0,0.00144146]
[1735220893116,0.10398632,95552.0,95551.0,0.00444146]
[1735220893315,0.18606039,95570.0,95551.0,0.00444146]
[1735220893316,0.15,95562.0,95551.0,0.00444146]
[1735220893524,0.09384026,95567.0,95557.0,0.418595]
[1735220893718,0.09384026,95567.0,95552.0,0.0815]
[1735220893921,0.14152998,95576.0,95563.0,0.209285]
[1735220893922,0.09384026,95569.0,95563.0,0.209285]
[1735220894162,0.09384026,95569.0,95563.0,0.41857]
[1735220894700,0.09384026,95569.0,95565.0,0.418562]
[1735220894900,0.002,95567.0,95566.0,0.23243262]
[1735220895126,0.002,95567.0,95566.0,0.23138632]
[1735220895349,0.0001712,95572.0,95566.0,0.23138632]
[1735220895577,0.0001712,95572.0,95567.0,0.41960016]
[1735220895799,0.001,95569.0,95568.0,0.10398632]
[1735220895947,0.001,95569.0,95568.0,0.20398632]
[1735220896151,0.0001712,95572.0,95569.0,0.209272]
[1735220896404,0.0001712,95572.0,95571.0,0.537568]
[1735220896703,0.0001712,95572.0,95571.0,0.64155432]
[1735220897342,0.0001712,95572.0,95571.0,0.87644419]
[1735220897753,0.0001712,95572.0,95571.0,0.99944419]
[1735220897754,0.0011712,95572.0,95571.0,0.99944419]
[1735220898313,0.0011712,95572.0,95571.0,1.12076109]
[1735220898314,0.0021712,95572.0,95571.0,1.12076109]
[1735220898532,0.0011712,95572.0,95571.0,1.11176109]
[1735220898733,0.0031712,95572.0,95571.0,1.12876109]
[1735220899385,0.0031712,95572.0,95571.0,1.31664278]
[1735220899811,0.001272,95572.0,95571.0,1.31664278]
[1735220900320,0.001272,95572.0,95571.0,1.30764278]
[1735220900541,0.000272,95572.0,95571.0,1.30764278]
[1735220900730,0.0001712,95591.0,95574.0,0.1]
[1735220900932,0.0001712,95591.0,95574.0,0.22803232]
[1735220901111,0.0001712,95591.0,95574.0,0.64478632]
[1735220901516,0.0001712,95591.0,95574.0,0.73866239]
[1735220901715,0.0011712,95575.0,95574.0,0.74566239]
[1735220901958,0.0011712,95575.0,95574.0,0.65067607]
[1735220902715,0.0011712,95575.0,95574.0,0.5568]
[1735220903418,0.0011712,95575.0,95574.0,0.5478]
[1735220903738,0.0011712,95575.0,95574.0,0.5568]
[1735220903739,0.0021712,95575.0,95574.0,0.5568]
[1735220904097,0.0021712,95575.0,95574.0,0.016]
[1735220904302,0.0011712,95575.0,95574.0,0.01004616]
[1735220904480,0.0011712,95575.0,95574.0,0.01504616]
[1735220905469,0.0011712,95575.0,95574.0,0.014]
[1735220906747,0.02221282,95575.0,95574.0,0.014]
[1735220906934,0.0815712,95575.0,95574.0,0.005]
[1735220907411,0.0825712,95575.0,95574.0,0.014]
[1735220907520,0.209261,95574.0,95561.0,0.02067832]
[1735220907716,0.10398632,95573.0,95560.0,8.56e-05]
[1735220907944,0.04426145,95572.0,95560.0,8.56e-05]
[1735220908143,0.2455163,95571.0,95560.0,8.56e-05]
[1735220908379,0.418565,95565.0,95560.0,8.56e-05]
[1735220908609,0.52255132,95565.0,95560.0,8.56e-05]
[1735220908963,0.31326832,95565.0,95560.0,8.56e-05]
[1735220909368,0.10398632,95565.0,95560.0,8.56e-05]
[1735220909775,0.209283,95564.0,95560.0,8.56e-05]
[1735220909981,0.05225413,95563.0,95560.0,8.56e-05]
[1735220910179,0.209288,95562.0,95560.0,8.56e-05]
[1735220910383,0.209283,95564.0,95560.0,8.56e-05]
[1735220910702,0.10498632,95565.0,95560.0,8.56e-05]
[1735220910999,0.002,95564.0,95560.0,8.56e-05]
[1735220911197,0.001,95563.0,95560.0,8.56e-05]
[1735220911704,0.002,95564.0,95560.0,8.56e-05]
[1735220911906,0.209286,95563.0,95560.0,8.56e-05]
[1735220912047,0.06860613,95564.0,95560.0,8.56e-05]
[1735220912469,0.209286,95563.0,95560.0,8.56e-05]
[1735220912780,0.20929,95561.0,95560.0,8.56e-05]
[1735220912987,0.31327632,95561.0,95560.0,8.56e-05]
[1735220913369,0.10398632,95561.0,95560.0,8.56e-05]
[1735220914147,0.25498632,95561.0,95560.0,8.56e-05]
[1735220914556,0.25398632,95561.0,95560.0,8.56e-05]
[1735220914756,0.25598632,95561.0,95560.0,8.56e-05]
[1735220915175,0.25398632,95561.0,95560.0,8.56e-05]
[1735220915392,0.25498632,95561.0,95560.0,8.56e-05]
[1735220915576,0.32234155,95561.0,95560.0,8.56e-05]
[1735220916193,0.25498632,95561.0,95560.0,8.56e-05]
[1735220916396,0.25598632,95561.0,95560.0,8.56e-05]
[1735220920244,0.25498632,95561.0,95560.0,8.56e-05]
[1735220920442,0.25598632,95561.0,95560.0,8.56e-05]
[1735220920625,0.25498632,95561.0,95560.0,8.56e-05]
[1735220921210,0.32234195,95561.0,95560.0,8.56e-05]
[1735220922348,0.25498632,95561.0,95560.0,8.56e-05]
[1735220922530,0.33068632,95561.0,95560.0,8.56e-05]
[1735220922908,0.33068632,95561.0,95560.0,0.0020856]
[1735220923109,0.209292,95560.0,95551.0,0.00044146]
[1735220923385,0.10398632,95559.0,95551.0,0.00044146]
[1735220923789,0.20931,95552.0,95551.0,0.00044146]
[1735220923917,0.31329632,95552.0,95551.0,0.00044146]
[1735220925125,0.10398632,95552.0,95551.0,0.00044146]
[1735220926243,0.10498632,95552.0,95551.0,0.00044146]
[1735220926423,0.17827495,95552.0,95551.0,0.00044146]
[1735220927039,0.17727495,95552.0,95551.0,0.00044146]
[1735220927500,0.17827495,95552.0,95551.0,0.00044146]
[1735220928714,0.17727495,95552.0,95551.0,0.00044146]
[1735220928917,0.17827495,95552.0,95551.0,0.00044146]
[1735220929575,0.17927495,95552.0,95536.0,0.0036336]
[1735220929786,0.31329832,95551.0,95536.0,0.0036336]
[1735220930527,0.10398632,95551.0,95536.0,0.0036336]
[1735220930774,0.10398632,95551.0,95541.0,0.209332]
[1735220932135,0.10498632,95551.0,95541.0,0.209332]
[1735220932335,0.10398632,95551.0,95541.0,0.209332]
[1735220932538,0.209316,95549.0,95538.0,0.20934]
[1735220932763,0.20933,95543.0,95536.0,0.0036336]
[1735220932960,0.31331632,95543.0,95536.0,0.0036336]
[1735220935025,0.31331632,95543.0,95536.0,0.0046336]
[1735220935252,0.10398632,95542.0,95536.0,0.0076336]
[1735220935707,0.418668,95541.0,95536.0,0.004]
[1735220935837,0.418676,95539.0,95536.0,0.004]
[1735220936035,0.10398632,95538.0,95536.0,0.001]
[1735220936257,0.10398632,95538.0,95524.0,0.0001712]
[1735220937066,0.209357,95531.0,95524.0,0.0001712]
[1735220937264,0.14585642,95530.0,95524.0,0.02130921]
[1735220937445,0.14585642,95530.0,95526.0,0.0152866]
[1735220937985,0.14585642,95530.0,95526.0,0.0142866]
[1735220938238,0.14585642,95530.0,95526.0,0.0162866]
[1735220938657,0.14585642,95530.0,95526.0,0.0182866]
[1735220938956,0.03552134,95529.0,95526.0,0.0162866]
[1735220939162,0.10398632,95528.0,95526.0,0.0212866]
[1735220939318,0.10398632,95528.0,95526.0,0.0192866]
[1735220939739,0.10398632,95528.0,95526.0,0.0212866]
[1735220939955,0.1430598,95528.0,95526.0,0.0162866]
[1735220940412,0.1440598,95528.0,95526.0,0.0202866]
[1735220940647,0.10498632,95528.0,95526.0,0.0202866]
[1735220940959,0.10498632,95528.0,95526.0,0.0232866]
[1735220941577,0.10498632,95528.0,95526.0,0.0233722]
[1735220942402,0.001,95528.0,95527.0,0.077]
[1735220943878,0.076,95554.0,95527.0,0.003]
[1735220943879,0.15,95545.0,95527.0,0.003]
[1735220943995,0.15,95543.0,95527.0,0.003]
[1735220944198,0.31331932,95542.0,95527.0,0.003]
[1735220944418,0.10398632,95542.0,95527.0,0.003]
[1735220944624,0.285353,95533.0,95526.0,0.0143722]
[1735220944819,0.31333932,95532.0,95526.0,0.0143722]
[1735220945687,0.001,95528.0,95527.0,0.008]
[1735220945902,0.10498632,95528.0,95527.0,0.011]
[1735220946121,0.25398632,95528.0,95527.0,0.003]
[1735220946317,0.38097264,95528.0,95527.0,0.003]
[1735220946457,0.359364,95527.0,95526.0,0.0183722]
[1735220946662,0.46335032,95527.0,95526.0,0.0163722]
[1735220947140,0.46335032,95527.0,95526.0,0.0143722]
[1735220947345,0.54105032,95527.0,95526.0,0.0143722]
[1735220947548,0.64703664,95527.0,95526.0,0.0143722]
[1735220948940,0.64503664,95527.0,95526.0,0.0143722]
[1735220949145,0.64703664,95527.0,95526.0,0.0143722]
[1735220949530,0.65203664,95527.0,95526.0,0.0143722]
[1735220949741,0.67303664,95527.0,95526.0,0.0143722]
[1735220950148,0.68003664,95527.0,95526.0,0.0143722]
[1735220953327,0.68003664,95527.0,95505.0,0.02081683]
[1735220953328,0.15,95526.0,95505.0,0.02081683]
[1735220953533,0.359397,95512.0,95511.0,0.00030349]
[1735220953734,0.46338332,95512.0,95511.0,0.00030349]
[1735220955839,0.46338332,95512.0,95511.0,0.00130349]
[1735220956245,0.46338332,95512.0,95511.0,0.00030349]
[1735220956474,0.46338332,95512.0,95511.0,0.00230349]
[1735220957278,0.15,95520.0,95511.0,0.00030349]
[1735220957481,0.15,95518.0,95511.0,0.00130349]
[1735220957707,0.004,95512.0,95511.0,0.00130349]
[1735220958626,0.004,95512.0,95511.0,0.08035044]
[1735220958817,0.004,95512.0,95511.0,0.07935044]
[1735220959216,0.209338,95539.0,95519.0,0.418763]
[1735220959447,0.0777,95546.0,95539.0,0.0335753]
[1735220959720,0.209332,95542.0,95539.0,0.0335753]
[1735220959924,0.359336,95540.0,95539.0,0.0335753]
[1735220960339,0.15,95540.0,95539.0,0.0335753]
[1735220960946,0.25398632,95540.0,95539.0,0.0335753]
[1735220961150,0.15,95539.0,95521.0,0.209378]
[1735220961354,0.20935,95534.0,95521.0,0.209378]
[1735220961548,0.10398632,95533.0,95516.0,0.209388]
[1735220962135,0.209353,95532.0,95516.0,0.418776]
[1735220962346,0.10398632,95531.0,95516.0,0.418776]
[1735220962723,0.10398632,95531.0,95521.0,0.209377]
[1735220963750,0.002,95531.0,95526.0,0.209366]
[1735220963960,0.001,95531.0,95526.0,0.209366]
[1735220964318,0.001,95531.0,95522.0,0.209375]
[1735220965057,0.15,95538.0,95522.0,0.209375]
[1735220965265,0.209338,95539.0,95522.0,0.209375]
[1735220965266,0.15,95536.0,95522.0,0.41875]
[1735220965440,0.25398632,95536.0,95522.0,0.41875]
[1735220965864,0.25398632,95536.0,95522.0,0.42075]
[1735220966225,0.25398632,95536.0,95522.0,0.41875]
[1735220966628,0.25398632,95536.0,95527.0,0.209363]
[1735220967388,0.25398632,95536.0,95523.0,0.209373]
[1735220968757,0.2727079,95536.0,95523.0,0.209373]
[1735220968959,0.209347,95535.0,95523.0,0.209373]
[1735220969159,0.2727079,95536.0,95523.0,0.209373]
[1735220970002,0.25398632,95536.0,95523.0,0.209373]
[1735220970234,0.25398632,95536.0,95523.0,0.210373]
[1735220970412,0.25398632,95536.0,95523.0,0.001]
[1735220970620,0.03356086,95537.0,95524.0,0.08274681]
[1735220970795,0.03356086,95537.0,95534.0,0.418697]
[1735220971005,0.03356086,95537.0,95530.0,0.209358]
[1735220971207,0.03356086,95537.0,95525.0,0.209368]
[1735220971433,0.10398632,95536.0,95523.0,0.001]
[1735220971633,0.10398632,95536.0,95524.0,0.209371]
[1735220972208,0.03356086,95537.0,95532.0,0.02082035]
[1735220972987,0.001,95536.0,95532.0,0.02082035]
[1735220973358,0.001,95536.0,95532.0,0.02382035]
[1735220973561,0.22780309,95535.0,95532.0,0.02482035]
[1735220973765,0.22780309,95535.0,95532.0,0.02182035]
[1735220974059,0.209351,95533.0,95532.0,0.001]
[1735220974277,0.31333732,95533.0,95532.0,0.001]
[1735220974933,0.31323732,95533.0,95532.0,0.001]
[1735220975134,0.31323732,95533.0,95532.0,0.002]
[1735220975320,0.31323732,95533.0,95532.0,0.001]
[1735220975516,0.31323732,95533.0,95532.0,0.002]
[1735220976037,0.46323732,95533.0,95532.0,0.001]
[1735220978104,0.57759184,95533.0,95532.0,0.001]
[1735220978306,0.55662184,95533.0,95532.0,0.001]
[1735220978534,0.46323732,95533.0,95532.0,0.001]
[1735220978984,0.48623732,95533.0,95532.0,0.001]
[1735220979165,0.56673732,95533.0,95532.0,0.001]
[1735220980130,0.56673732,95533.0,95524.0,8.56e-05]
[1735220980131,0.359369,95525.0,95524.0,8.56e-05]
[1735220980297,0.15,95522.0,95496.0,0.209432]
[1735220980505,0.18347526,95524.0,95496.0,0.209432]
[1735220980506,0.15,95520.0,95496.0,0.209432]
[1735220980707,0.209397,95512.0,95496.0,0.209432]
[1735220980908,0.31338332,95512.0,95496.0,0.209432]
[1735220981913,0.10398632,95512.0,95501.0,0.209419]
[1735220982376,0.10498632,95512.0,95501.0,0.209419]
[1735220982658,0.10498632,95512.0,95496.0,0.209432]
[1735220982659,0.10798632,95512.0,95496.0,0.209432]
[1735220982801,0.25398632,95512.0,95498.0,0.02076834]
[1735220983762,0.25498632,95512.0,95498.0,0.02076834]
[1735220984298,0.25498632,95512.0,95501.0,0.209421]
[1735220984449,0.25498632,95512.0,95498.0,0.02076834]
[1735220985049,0.25398632,95512.0,95498.0,0.02076834]
[1735220985257,0.25498632,95512.0,95498.0,0.02076834]
[1735220985700,0.25398632,95512.0,95498.0,0.02076834]
[1735220985905,0.25498632,95512.0,95498.0,0.02076834]
[1735220986647,0.25498632,95512.0,95501.0,0.209421]
[1735220986816,0.25498632,95512.0,95498.0,0.02076834]
[1735220986817,0.001,95512.0,95506.0,0.418819]
[1735220987717,0.001,95512.0,95511.0,0.00138919]
[1735220988303,0.27140006,95512.0,95511.0,0.00138919]
[1735220988580,0.34198114,95512.0,95511.0,0.00138919]
[1735220988949,0.34198114,95512.0,95511.0,0.00238919]
[1735220989158,0.34198114,95512.0,95511.0,0.00138919]
[1735220989357,0.27040006,95512.0,95511.0,0.00238919]
[1735220989761,0.27040006,95512.0,95511.0,0.00038919]
[1735220989967,0.27240006,95512.0,95511.0,0.00038919]
[1735220994768,0.27040006,95512.0,95511.0,0.00138919]
[1735220995285,0.27040006,95512.0,95511.0,0.00238919]
[1735220995458,0.27040006,95512.0,95500.0,8.56e-05]
[1735220995459,0.24048607,95511.0,95500.0,8.56e-05]
[1735220995668,0.29589162,95511.0,95500.0,8.56e-05]
[1735220996768,0.15,95508.0,95500.0,8.56e-05]
[1735220996911,0.25398632,95508.0,95500.0,8.56e-05]
[1735220997671,0.209408,95507.0,95500.0,8.56e-05]
[1735220998194,0.209421,95501.0,95500.0,8.56e-05]
[1735220998397,0.31340732,95501.0,95500.0,8.56e-05]
[1735221000427,0.46340732,95501.0,95500.0,8.56e-05]
[1735221003826,0.8080373,95501.0,95500.0,8.56e-05]
[1735221003998,1.10897665,95501.0,95500.0,8.56e-05]
[1735221004408,1.08189362,95501.0,95500.0,8.56e-05]
[1735221004608,1.04036364,95501.0,95500.0,8.56e-05]
[1735221004851,0.209485,95472.0,95463.0,0.09387607]
[1735221005066,0.7570013,95472.0,95463.0,0.09387607]
[1735221005240,0.88195762,95472.0,95463.0,0.09387607]
[1735221005682,0.88195762,95472.0,95443.0,0.209547]
[1735221005683,0.88195762,95472.0,95455.0,8.56e-05]
[1735221005894,0.90904065,95472.0,95455.0,8.56e-05]
[1735221006063,0.90904065,95472.0,95471.0,0.00072013]
[1735221007238,0.88295762,95472.0,95471.0,0.00072013]
[1735221007653,0.88195762,95472.0,95471.0,0.00072013]
[1735221008067,0.86098762,95472.0,95471.0,0.00072013]
[1735221008453,0.86698762,95472.0,95471.0,0.00172013]
[1735221008663,0.86498762,95472.0,95471.0,0.00072013]
[1735221009059,0.89707329,95472.0,95471.0,0.00172013]
[1735221009265,0.88807329,95472.0,95471.0,0.00072013]
[1735221009669,0.89407329,95472.0,95471.0,0.00172013]
[1735221009878,0.86698762,95472.0,95471.0,0.00172013]
[1735221010185,0.86098762,95472.0,95471.0,0.00072013]
[1735221010387,0.89207329,95472.0,95471.0,0.00072013]
[1735221010564,0.3595,95465.0,95455.0,8.56e-05]
[1735221010767,0.46348632,95465.0,95455.0,8.56e-05]
[1735221012068,0.46448632,95465.0,95455.0,8.56e-05]
[1735221012692,0.46348632,95465.0,95455.0,8.56e-05]
[1735221013110,0.46448632,95465.0,95455.0,8.56e-05]
[1735221013748,0.52872299,95465.0,95455.0,8.56e-05]
[1735221014100,0.46448632,95465.0,95455.0,8.56e-05]
[1735221014578,0.31448632,95465.0,95455.0,8.56e-05]
[1735221014779,0.46448632,95465.0,95455.0,8.56e-05]
[1735221015393,0.46348632,95465.0,95455.0,8.56e-05]
[1735221015640,0.25398632,95465.0,95455.0,8.56e-05]
[1735221015859,0.03036594,95471.0,95465.0,0.0783]
[1735221016554,0.209445,95491.0,95465.0,0.0783]
[1735221016761,0.10398632,95491.0,95466.0,0.00104744]
[1735221016977,0.14152998,95497.0,95484.0,0.209458]
[1735221017177,0.31341832,95496.0,95485.0,0.0783]
[1735221017380,0.52285132,95496.0,95485.0,0.0783]
[1735221017582,0.209437,95494.0,95485.0,0.0783]
[1735221017781,0.10398632,95493.0,95485.0,0.0783]
[1735221017898,0.10398632,95493.0,95485.0,0.287756]
[1735221018127,0.14152998,95497.0,95485.0,0.287756]
[1735221018128,0.15,95492.0,95485.0,0.287756]
[1735221018334,0.14152998,95497.0,95491.0,0.209443]
[1735221018532,0.10398632,95496.0,95491.0,0.209443]
[1735221018738,0.14152998,95497.0,95491.0,0.418886]
[1735221019372,0.209394,95514.0,95498.0,0.209428]
[1735221019577,0.209383,95519.0,95498.0,0.418856]
[1735221020072,0.209383,95519.0,95498.0,0.209428]
[1735221020073,0.209394,95514.0,95498.0,0.209428]
[1735221020270,0.15,95513.0,95496.0,0.209432]
[1735221020408,0.209405,95509.0,95496.0,0.209432]
[1735221020629,0.10398632,95509.0,95496.0,0.209432]
[1735221021281,0.00051971,95513.0,95497.0,0.2104751]
[1735221021612,0.00051971,95513.0,95497.0,0.0010471]
[1735221021817,0.00051971,95513.0,95499.0,0.209426]
[1735221021971,0.00051971,95513.0,95505.0,0.209412]
[1735221022373,0.001,95509.0,95505.0,0.209412]
[1735221022586,0.001,95509.0,95506.0,0.0753]
[1735221023762,0.001,95509.0,95503.0,0.02065976]
[1735221024144,0.209399,95512.0,95498.0,0.209428]
[1735221024341,0.10398632,95511.0,95505.0,0.003]
[1735221024551,0.00051971,95513.0,95505.0,0.008]
[1735221024763,0.02097,95509.0,95505.0,0.005]
[1735221025285,0.02597,95509.0,95503.0,0.210416]
[1735221025474,0.02097,95509.0,95503.0,0.210416]
[1735221025675,0.02097,95508.0,95505.0,0.005]
[1735221026099,0.14137142,95508.0,95505.0,0.005]
[1735221026233,0.14137142,95508.0,95505.0,0.014]
[1735221026873,0.02097,95506.0,95505.0,0.014]
[1735221027058,0.02097,95506.0,95505.0,0.009]
[1735221027638,0.02097,95506.0,95504.0,0.02051282]
[1735221028165,0.02097,95506.0,95505.0,0.001]
[1735221028370,0.02097,95507.0,95505.0,0.001]
[1735221028494,0.02097,95507.0,95505.0,0.003]
[1735221028812,0.02097,95507.0,95505.0,0.002]
[1735221029580,0.02097,95507.0,95504.0,0.02151282]
[1735221029781,0.209408,95507.0,95504.0,0.02151282]
[1735221030221,0.0001712,95509.0,95504.0,0.02151282]
[1735221030431,0.10415752,95509.0,95504.0,0.02051282]
[1735221030641,0.10415752,95509.0,95505.0,0.009]
[1735221031044,0.10415752,95509.0,95496.0,0.0753]
[1735221031225,0.10415752,95509.0,95504.0,0.009]
[1735221031430,0.10415752,95509.0,95504.0,0.005]
[1735221031850,0.01001258,95508.0,95505.0,0.005]
[1735221032062,0.01001258,95508.0,95497.0,0.20943]
[1735221032256,0.01001258,95508.0,95504.0,0.209415]
[1735221032394,0.0001712,95509.0,95504.0,0.009]
[1735221032596,0.0001712,95509.0,95505.0,0.3144453]
[1735221032812,0.00941257,95508.0,95507.0,0.1753]
[1735221033016,0.0001712,95509.0,95508.0,0.288436]
[1735221033222,0.0001712,95509.0,95508.0,1.00852232]
[1735221034050,0.02097,95547.0,95512.0,0.07903]
[1735221034301,0.02097,95547.0,95512.0,0.25936299]
[1735221034498,0.02097,95547.0,95512.0,0.17928632]
[1735221034698,0.00041971,95513.0,95512.0,0.17928632]
[1735221034963,0.00041971,95513.0,95512.0,0.07634677]
[1735221035192,0.00041971,95513.0,95512.0,0.17022284]
[1735221035400,0.00048768,95513.0,95512.0,0.17922284]
[1735221035815,0.00048768,95513.0,95512.0,0.18822284]
[1735221036020,0.00048768,95513.0,95512.0,0.09434677]
[1735221036731,0.02097,95530.0,95521.0,0.209377]
[1735221037752,0.02097,95530.0,95521.0,0.2303147]
[1735221037913,0.02097,95530.0,95521.0,0.2383147]
[1735221038113,0.02097,95529.0,95521.0,0.4476917]
[1735221038532,0.02097,95529.0,95521.0,0.4596917]
[1735221038740,0.02097,95529.0,95521.0,0.422754]
[1735221039259,0.02097,95528.0,95523.0,0.209373]
[1735221040333,0.02097,95541.0,95523.0,0.209373]
[1735221040748,0.02097,95541.0,95535.0,0.209345]
[1735221040749,0.02112585,95541.0,95535.0,0.209345]
[1735221040983,0.02097,95539.0,95535.0,0.209345]
[1735221041845,0.02097,95539.0,95535.0,0.213345]
[1735221042065,0.02112585,95541.0,95535.0,0.004]
[1735221042242,0.02097,95538.0,95535.0,0.004]
[1735221042587,0.02097,95536.0,95535.0,0.004]
[1735221042834,0.03054818,95536.0,95535.0,0.004]
[1735221043034,0.03054818,95536.0,95530.0,0.209358]
[1735221043239,0.03054818,95536.0,95535.0,0.001]
[1735221043449,0.03054818,95536.0,95535.0,0.005]
[1735221043642,0.03054818,95536.0,95530.0,0.209358]
[1735221043888,0.03054818,95536.0,95535.0,0.007]
[1735221044099,0.03054818,95536.0,95535.0,0.009]
[1735221044357,0.03054818,95536.0,95535.0,0.002]
[1735221044603,0.03054818,95536.0,95535.0,0.007]
[1735221045038,0.03054818,95536.0,95530.0,0.211358]
[1735221046189,0.03054818,95536.0,95535.0,0.216347]
[1735221046419,0.03041168,95536.0,95535.0,0.291347]
[1735221046624,0.00015585,95541.0,95540.0,0.209336]
[1735221047025,0.03041517,95541.0,95540.0,0.209336]
[1735221047460,0.02085285,95541.0,95540.0,0.209336]
[1735221048047,0.00015585,95541.0,95540.0,0.201366]
[1735221049398,0.00015585,95541.0,95540.0,0.192366]
[1735221049743,0.00015585,95541.0,95540.0,0.201366]
[1735221050152,0.00015585,95541.0,95540.0,0.23394672]
[1735221051550,0.00032705,95541.0,95540.0,0.23394672]
[1735221052530,0.00032705,95541.0,95540.0,0.22494672]
[1735221052778,0.00032705,95541.0,95540.0,0.23394672]
[1735221052925,0.00032705,95541.0,95540.0,0.22994672]
[1735221053129,0.00032705,95541.0,95540.0,0.22094672]
[1735221053312,0.00032705,95541.0,95540.0,0.23394672]
[1735221053519,0.00032705,95541.0,95540.0,0.22494672]
[1735221053922,0.00032705,95541.0,95540.0,0.23394672]
[1735221054200,0.00032705,95541.0,95540.0,0.30035403]
[1735221054404,0.020697,95553.0,95552.0,0.20931]
[1735221054602,0.020697,95553.0,95552.0,0.24189072]
[1735221055017,0.02097,95567.0,95558.0,0.209296]
[1735221055018,0.020697,95566.0,95558.0,0.209296]
[1735221055223,0.020697,95566.0,95559.0,0.03258072]
[1735221056652,0.020697,95566.0,95559.0,0.04517222]
[1735221056829,0.020697,95566.0,95559.0,0.03258072]
[1735221057028,0.020697,95566.0,95559.0,0.03658072]
[1735221057233,0.020697,95566.0,95559.0,0.04558072]
[1735221057458,0.020697,95566.0,95559.0,0.03658072]
[1735221058431,0.02097,95562.0,95559.0,0.04158072]
[1735221058634,0.020697,95561.0,95559.0,0.04158072]
[1735221058783,0.02891125,95560.0,95559.0,0.05058072]
[1735221058990,0.02918425,95560.0,95559.0,0.04158072]
[1735221059193,0.0211412,95560.0,95559.0,0.06286602]
[1735221059394,0.0211412,95560.0,95559.0,0.06786602]
[1735221059784,0.0001712,95560.0,95559.0,0.07186602]
[1735221060190,0.0001712,95560.0,95559.0,0.06286602]
[1735221060432,0.02097,95566.0,95559.0,0.07186602]
[1735221060607,0.1542211,95575.0,95560.0,0.24187272]
[1735221060814,0.1542211,95575.0,95561.0,0.03258072]
[1735221060815,0.10398632,95574.0,95561.0,0.03258072]
[1735221061154,0.00808517,95574.0,95562.0,0.03362716]
[1735221061358,0.00808517,95574.0,95573.0,0.209264]
[1735221061555,0.00808517,95574.0,95573.0,0.52723104]
[1735221061801,0.0781,95616.0,95574.0,0.1]
[1735221061975,0.0001712,95619.0,95590.0,0.290626]
[1735221062214,0.0001712,95619.0,95590.0,0.44940605]
[1735221062423,0.0001712,95619.0,95590.0,0.79940605]
[1735221062621,0.0001712,95619.0,95590.0,0.86840605]
[1735221062795,0.0001712,95619.0,95590.0,0.74540605]
[1735221063024,0.0001712,95619.0,95590.0,0.84540605]
[1735221063237,0.0001712,95619.0,95590.0,0.85440605]
[1735221063615,0.0001712,95619.0,95590.0,0.85321723]
[1735221063871,0.0001712,95619.0,95590.0,0.86221723]
[1735221064080,0.0001712,95619.0,95590.0,1.69155512]
[1735221064284,0.0001712,95619.0,95604.0,0.209196]
[1735221064495,0.00032696,95605.0,95604.0,0.28361722]
[1735221065134,0.00032696,95605.0,95604.0,0.48760354]
[1735221065754,0.00032696,95605.0,95604.0,0.72111765]
[1735221066060,0.00032696,95605.0,95604.0,1.02488727]
[1735221066263,0.0001712,95619.0,95618.0,0.209165]
[1735221066468,0.0006903,95619.0,95618.0,0.24174572]
[1735221067531,0.0006903,95619.0,95618.0,0.24774572]
[1735221068220,0.0001712,95627.0,95618.0,0.42673204]
[1735221068413,0.0001712,95627.0,95624.0,0.209152]
[1735221068595,0.0001712,95627.0,95625.0,0.03362625]
[1735221068815,0.0001712,95627.0,95626.0,0.24172872]
[1735221069352,0.209069,95662.0,95629.0,0.209139]
[1735221069561,0.05862968,95661.0,95630.0,0.03362625]
[1735221069792,0.15,95659.0,95640.0,0.209115]
[1735221069994,0.15,95655.0,95641.0,0.03258072]
[1735221070196,0.15,95655.0,95642.0,0.03258072]
[1735221070397,0.00799401,95654.0,95643.0,0.24169072]
[1735221070598,0.15,95653.0,95644.0,0.03258072]
[1735221070796,0.15,95653.0,95645.0,0.03258072]
[1735221071008,0.00801718,95652.0,95646.0,0.03258072]
[1735221071210,0.00801718,95652.0,95640.0,0.209115]